bitfinex/quotes_BTCUSD_20220201
["timestamp","ask_amount","ask_price","bid_price","bid_amount"]
[1643732398175,0.21747375,38936.0,38929.0,0.064221]
[1643732398376,0.128441,38936.0,38929.0,0.064221]
[1643732398629,0.064214,38935.0,38930.0,0.347457]
[1643732398826,0.064214,38935.0,38931.0,0.1941473]
[1643732399028,0.27989144,38941.0,38932.0,0.347457]
[1643732399227,0.32430184,38941.0,38933.0,0.20958056]
[1643732399426,0.00108292,38939.0,38933.0,0.20958056]
[1643732399633,0.00108292,38939.0,38934.0,0.347457]
[1643732399828,0.00108292,38939.0,38936.0,0.128408]
[1643732400127,0.064205,38943.0,38937.0,0.54957897]
[1643732400333,0.010282,38948.0,38939.0,0.24963402]
[1643732400528,0.010282,38948.0,38940.0,0.25363399]
[1643732400727,0.010282,38948.0,38940.0,0.35363399]
[1643732401129,0.010282,38948.0,38941.0,0.064199]
[1643732401428,0.065198,38949.0,38941.0,0.064199]
[1643732401628,0.00108305,38946.0,38941.0,0.064199]
[1643732402028,0.00108305,38946.0,38941.0,0.19188586]
[1643732402275,0.06528305,38946.0,38940.0,0.128394]
[1643732402475,0.0642,38946.0,38940.0,0.128394]
[1643732402676,0.0642,38946.0,38941.0,0.20132028]
[1643732402880,0.00108305,38945.0,38941.0,0.19461144]
[1643732403077,0.00108305,38945.0,38942.0,0.347457]
[1643732403278,0.00108305,38945.0,38941.0,0.54651014]
[1643732403488,0.00108305,38945.0,38944.0,1.819]
[1643732403681,0.001,38949.0,38944.0,0.844657]
[1643732403879,0.001,38949.0,38945.0,0.18134372]
[1643732404080,0.001,38949.0,38946.0,0.0472]
[1643732404881,0.001,38949.0,38946.0,0.111386]
[1643732405084,0.00208305,38949.0,38946.0,0.111386]
[1643732405881,0.00208305,38949.0,38946.0,0.064186]
[1643732406126,0.001,38949.0,38945.0,0.128371]
[1643732406326,0.00108305,38949.0,38945.0,0.128371]
[1643732406524,0.00108305,38949.0,38946.0,0.19272913]
[1643732406725,0.00108305,38949.0,38945.0,0.128371]
[1643732406925,0.00108305,38949.0,38946.0,0.19092776]
[1643732407123,0.00108305,38949.0,38947.0,0.0472]
[1643732407323,0.24891694,38950.0,38947.0,0.0472]
[1643732407524,0.00084827,38949.0,38948.0,0.06419]
[1643732408126,0.13159209,38949.0,38948.0,0.06419]
[1643732408527,0.24891694,38950.0,38948.0,0.06419]
[1643732408725,0.24976521,38950.0,38948.0,0.06419]
[1643732409780,0.24891694,38950.0,38948.0,0.06419]
[1643732410179,0.09076466,38950.0,38949.0,3.11265694]
[1643732410380,7.42,38954.0,38951.0,0.75]
[1643732410381,7.0,38954.0,38951.0,0.75]
[1643732410578,7.0,38954.0,38949.0,2.26493575]
[1643732410579,7.0,38954.0,38953.0,1.369]
[1643732410783,7.0,38954.0,38953.0,1.5162]
[1643732411079,5.9464,38954.0,38953.0,1.75895831]
[1643732411281,5.9451,38954.0,38953.0,1.863657]
[1643732411681,5.9451,38954.0,38953.0,1.763657]
[1643732411981,5.9451,38954.0,38953.0,0.494657]
[1643732412580,5.9451,38954.0,38953.0,0.0472]
[1643732413180,5.9451,38954.0,38949.0,0.128361]
[1643732413825,2.6565716,38954.0,38949.0,0.128361]
[1643732414023,2.6565716,38954.0,38951.0,1.369]
[1643732414223,2.6565716,38954.0,38952.0,0.394657]
[1643732414424,2.6565716,38954.0,38953.0,1.369]
[1643732414623,2.6565716,38954.0,38953.0,1.394657]
[1643732414624,2.65746425,38954.0,38953.0,1.394657]
[1643732414825,2.65746425,38954.0,38953.0,0.494657]
[1643732415625,2.65746425,38954.0,38953.0,1.144657]
[1643732415626,2.6565716,38954.0,38953.0,1.144657]
[1643732416026,2.6565716,38954.0,38953.0,1.13744641]
[1643732416225,2.6565716,38954.0,38953.0,0.48744641]
[1643732416627,2.6565716,38954.0,38953.0,1.43744641]
[1643732417126,2.65639694,38954.0,38953.0,1.43744641]
[1643732417385,1.93464322,38954.0,38953.0,1.28744641]
[1643732417986,1.93464322,38954.0,38953.0,0.48744641]
[1643732418589,1.93464322,38954.0,38953.0,0.38744641]
[1643732419286,1.93464322,38954.0,38953.0,0.38244641]
[1643732419485,1.93464322,38954.0,38953.0,0.68244641]
[1643732419887,1.93464322,38954.0,38953.0,0.78244641]
[1643732421532,1.93464322,38954.0,38953.0,1.23244641]
[1643732422130,1.93464322,38954.0,38953.0,0.78244641]
[1643732422529,1.93464322,38954.0,38953.0,0.68244641]
[1643732422731,1.93464322,38954.0,38953.0,0.33524641]
[1643732424131,1.93464322,38954.0,38952.0,0.064166]
[1643732424532,1.93464322,38954.0,38945.0,0.05]
[1643732424533,0.21427077,38953.0,38945.0,0.05]
[1643732424778,0.10716783,38954.0,38945.0,0.05]
[1643732425179,0.13510582,38955.0,38946.0,0.347408]
[1643732425378,0.13422316,38955.0,38946.0,0.347408]
[1643732425581,0.00088263,38953.0,38947.0,0.064193]
[1643732425779,0.00088263,38953.0,38948.0,0.347408]
[1643732425980,0.00088263,38953.0,38948.0,0.8005145]
[1643732426179,0.00088263,38953.0,38949.0,0.0472]
[1643732426382,0.00088263,38953.0,38950.0,0.347408]
[1643732426579,0.001,38956.0,38950.0,0.347408]
[1643732426779,0.00088281,38953.0,38951.0,0.1]
[1643732426979,0.00088281,38953.0,38952.0,0.347408]
[1643732427180,0.00088281,38953.0,38950.0,0.1283566]
[1643732427382,0.00088281,38953.0,38951.0,0.347416]
[1643732427681,0.001,38956.0,38951.0,0.347416]
[1643732427980,0.00088281,38954.0,38950.0,0.1283566]
[1643732428180,0.00088281,38954.0,38951.0,0.347416]
[1643732428931,0.001,38956.0,38950.0,0.164176]
[1643732429131,0.00088281,38954.0,38950.0,0.164176]
[1643732429329,0.00088281,38954.0,38951.0,0.347416]
[1643732429729,0.00088281,38954.0,38949.0,0.128352]
[1643732429929,0.00088281,38954.0,38950.0,0.347416]
[1643732430129,0.001,38956.0,38950.0,0.347416]
[1643732430329,0.00088281,38953.0,38951.0,0.1]
[1643732431229,0.001,38956.0,38949.0,0.128352]
[1643732431435,0.12410589,38950.0,38949.0,0.128352]
[1643732431630,0.00088277,38954.0,38949.0,0.475768]
[1643732431830,0.00088277,38954.0,38950.0,0.1]
[1643732432281,0.00088277,38954.0,38945.0,0.05]
[1643732432580,0.001,38956.0,38946.0,0.064195]
[1643732432581,0.12114343,38950.0,38946.0,0.064195]
[1643732432780,0.12114343,38950.0,38947.0,0.347416]
[1643732434084,0.12114343,38950.0,38949.0,0.064187]
[1643732434283,0.12114343,38950.0,38949.0,0.411603]
[1643732434681,0.12114343,38950.0,38949.0,0.511603]
[1643732436043,0.12114343,38950.0,38949.0,0.1]
[1643732436237,0.12114343,38950.0,38946.0,0.064194]
[1643732436437,0.00088274,38953.0,38947.0,0.347416]
[1643732436640,0.00088274,38953.0,38946.0,0.26822141]
[1643732436839,0.00088274,38953.0,38945.0,0.05]
[1643732436840,0.064202,38952.0,38945.0,0.05]
[1643732437039,0.064202,38952.0,38939.0,0.2028211]
[1643732437040,0.09261199,38947.0,38939.0,0.2028211]
[1643732437238,0.04555012,38955.0,38936.0,0.7619]
[1643732437239,0.14555012,38955.0,38936.0,0.7619]
[1643732437437,0.1,38953.0,38936.0,0.97898885]
[1643732437637,0.15,38953.0,38936.0,0.21708885]
[1643732437838,0.12878956,38946.0,38936.0,0.00115791]
[1643732438039,0.12878956,38946.0,38937.0,0.128405]
[1643732438240,0.12878956,38946.0,38936.0,0.02142591]
[1643732438241,0.08032408,38944.0,38936.0,0.02142591]
[1643732438444,0.08032408,38944.0,38936.0,0.020268]
[1643732438638,0.19300056,38946.0,38936.0,0.020268]
[1643732438639,0.19300056,38946.0,38936.0,0.00159939]
[1643732438841,0.19300056,38946.0,38937.0,0.064209]
[1643732439041,0.19300056,38946.0,38936.0,0.00159939]
[1643732439641,0.19300056,38946.0,38935.0,0.21593094]
[1643732439873,0.19300056,38946.0,38936.0,0.00159938]
[1643732440273,0.09479959,38943.0,38936.0,0.00159938]
[1643732440479,0.064218,38942.0,38936.0,0.00159938]
[1643732440973,0.064218,38942.0,38934.0,0.05]
[1643732441175,0.064218,38942.0,38936.0,0.00159936]
[1643732441375,0.13018691,38940.0,38936.0,0.00159936]
[1643732441574,0.064218,38942.0,38941.0,0.30225924]
[1643732441778,0.0466976,38950.0,38941.0,0.30225924]
[1643732441974,0.1,38950.0,38941.0,0.30225924]
[1643732442174,0.04471893,38950.0,38941.0,0.30225924]
[1643732442573,0.25034317,38946.0,38941.0,0.30225924]
[1643732442775,0.0378066,38950.0,38941.0,0.30225924]
[1643732443374,0.1378066,38950.0,38941.0,0.30225924]
[1643732443640,0.24468019,38947.0,38941.0,0.30225924]
[1643732443841,0.14468019,38947.0,38941.0,0.30225924]
[1643732444042,0.05442216,38953.0,38941.0,0.30225924]
[1643732444043,0.09874234,38953.0,38941.0,0.30225924]
[1643732444243,0.09874234,38953.0,38942.0,0.20699474]
[1643732444244,0.00442216,38953.0,38942.0,0.20699474]
[1643732444447,0.32092444,38954.0,38943.0,0.05]
[1643732444448,0.02092444,38954.0,38943.0,0.05]
[1643732444844,0.00088447,38953.0,38943.0,0.05]
[1643732445146,0.00088447,38953.0,38943.0,0.31809122]
[1643732445343,0.00088447,38953.0,38944.0,0.342416]
[1643732445847,0.00088447,38953.0,38943.0,0.05]
[1643732445848,0.00088461,38953.0,38946.0,0.064193]
[1643732446444,0.11315141,38951.0,38946.0,0.064193]
[1643732446643,0.22516928,38950.0,38943.0,0.178384]
[1643732446849,0.22516928,38950.0,38943.0,0.05]
[1643732447682,0.11315141,38951.0,38943.0,0.05]
[1643732447881,0.11315141,38951.0,38941.0,0.30225924]
[1643732448085,0.03717573,38950.0,38941.0,0.30225924]
[1643732448283,0.32141603,38949.0,38941.0,0.30225924]
[1643732448482,0.12185822,38945.0,38941.0,0.30225924]
[1643732449282,0.35862816,38949.0,38941.0,0.30225924]
[1643732449483,0.29442116,38949.0,38941.0,0.30225924]
[1643732450383,0.124468,38946.0,38941.0,0.30225924]
[1643732451334,0.04165911,38950.0,38941.0,0.30225924]
[1643732451534,0.00442249,38953.0,38941.0,0.30225924]
[1643732451734,0.001,38956.0,38942.0,0.544649]
[1643732451934,0.00442251,38953.0,38942.0,0.544649]
[1643732452535,0.00442251,38953.0,38947.0,0.23301651]
[1643732452735,0.00442251,38953.0,38942.0,0.1972]
[1643732452937,0.34521115,38956.0,38943.0,0.347449]
[1643732453135,0.00088462,38953.0,38944.0,0.0472]
[1643732453336,0.00088462,38953.0,38945.0,0.347449]
[1643732453536,0.00088462,38953.0,38946.0,0.064187]
[1643732453936,0.21610624,38953.0,38946.0,0.064187]
[1643732454139,0.21522162,38953.0,38946.0,0.064187]
[1643732454337,0.21610623,38953.0,38946.0,0.064187]
[1643732454638,0.00088461,38953.0,38946.0,0.064187]
[1643732455377,0.1297693,38950.0,38946.0,0.064187]
[1643732455778,0.07889182,38948.0,38946.0,0.064187]
[1643732455977,0.1297693,38950.0,38946.0,0.064187]
[1643732456878,0.00088457,38953.0,38946.0,0.064187]
[1643732457779,0.2569634,38955.0,38946.0,0.064187]
[1643732457979,0.12597045,38950.0,38946.0,0.064187]
[1643732458179,0.12597045,38950.0,38943.0,0.064199]
[1643732459228,0.12597045,38950.0,38943.0,0.128394]
[1643732459430,0.21492684,38950.0,38943.0,0.128394]
[1643732459829,0.12597045,38950.0,38943.0,0.128394]
[1643732460049,0.21603895,38949.0,38943.0,0.064199]
[1643732460233,0.1,38952.0,38941.0,0.37905924]
[1643732460531,0.21796346,38951.0,38941.0,0.37905924]
[1643732460731,0.09543594,38947.0,38941.0,0.37905924]
[1643732461129,0.45,38952.0,38941.0,0.37905924]
[1643732461330,0.088995,38951.0,38941.0,0.37905924]
[1643732462132,0.11933918,38947.0,38941.0,0.37905924]
[1643732462396,0.45762341,38950.0,38941.0,0.37515224]
[1643732462600,0.23673453,38950.0,38941.0,0.43935424]
[1643732462800,0.23673453,38950.0,38941.0,0.29835224]
[1643732463497,0.11602672,38948.0,38941.0,0.29835224]
[1643732463902,0.11602672,38948.0,38941.0,0.36255424]
[1643732464298,0.35,38952.0,38941.0,0.36255424]
[1643732464597,0.05,38948.0,38941.0,0.29835224]
[1643732464798,0.088995,38947.0,38941.0,0.29835224]
[1643732465000,0.13252003,38947.0,38941.0,0.29835224]
[1643732465201,0.088995,38946.0,38941.0,0.29835224]
[1643732465598,0.31943226,38947.0,38941.0,0.29835224]
[1643732466631,0.088995,38946.0,38941.0,0.29835224]
[1643732466832,0.3043709,38946.0,38941.0,0.29835224]
[1643732467032,0.088995,38946.0,38941.0,0.29835224]
[1643732468034,0.083995,38946.0,38941.0,0.29835224]
[1643732468233,0.29815851,38946.0,38941.0,0.29835224]
[1643732468433,0.083995,38946.0,38941.0,0.29835224]
[1643732469036,0.14909777,38942.0,38941.0,0.29835224]
[1643732469236,0.19909777,38942.0,38941.0,0.29835224]
[1643732469436,0.14909777,38942.0,38941.0,0.29835224]
[1643732469635,0.26943226,38947.0,38941.0,0.29835224]
[1643732469879,0.083986,38946.0,38941.0,0.29835224]
[1643732470482,0.31943226,38947.0,38941.0,0.29835224]
[1643732470781,0.083986,38946.0,38941.0,0.29835224]
[1643732471281,0.17946448,38947.0,38941.0,0.29835224]
[1643732471880,0.05,38947.0,38941.0,0.29835224]
[1643732472082,0.3,38952.0,38941.0,0.29835224]
[1643732472283,0.52504442,38952.0,38941.0,0.29835224]
[1643732472484,0.00442247,38953.0,38943.0,0.1284]
[1643732472684,0.00442247,38953.0,38944.0,0.21796346]
[1643732472986,0.00442247,38953.0,38945.0,0.0472]
[1643732473184,0.00442247,38953.0,38946.0,0.18611785]
[1643732473382,0.11336436,38955.0,38952.0,2.72590272]
[1643732473632,0.60088461,38953.0,38946.0,0.111395]
[1643732473831,0.60088461,38953.0,38944.0,0.256766]
[1643732474033,0.00088461,38953.0,38944.0,0.256766]
[1643732474433,0.24508055,38954.0,38944.0,0.256766]
[1643732474632,0.29508055,38954.0,38944.0,0.256766]
[1643732474831,0.0008846,38953.0,38944.0,0.256766]
[1643732475032,0.0008846,38953.0,38944.0,0.4603567]
[1643732475231,0.0008846,38953.0,38946.0,0.064195]
[1643732475431,0.0008846,38953.0,38947.0,0.064194]
[1643732475636,0.16336436,38955.0,38947.0,0.064194]
[1643732476032,0.00088461,38953.0,38947.0,0.064194]
[1643732476634,0.00088461,38953.0,38944.0,0.256766]
[1643732476833,0.11336436,38955.0,38944.0,0.256766]
[1643732477033,0.00088458,38953.0,38944.0,0.256766]
[1643732477478,0.00088458,38953.0,38944.0,0.128381]
[1643732477679,0.25084823,38949.0,38944.0,0.128381]
[1643732477881,0.05,38949.0,38944.0,0.128381]
[1643732478079,0.04515873,38954.0,38944.0,0.128381]
[1643732478289,0.00088453,38953.0,38944.0,0.128381]
[1643732478480,0.14651648,38949.0,38944.0,0.128381]
[1643732478680,0.14651648,38949.0,38944.0,0.19258]
[1643732479180,0.21424407,38948.0,38944.0,0.19258]
[1643732479380,0.21424407,38948.0,38941.0,0.29835224]
[1643732479381,0.57620725,38945.0,38941.0,0.29835224]
[1643732479583,0.62620725,38945.0,38941.0,0.29835224]
[1643732479782,0.30194946,38944.0,38941.0,0.29835224]
[1643732479981,0.30194946,38944.0,38941.0,5.224e-05]
[1643732479982,0.0395,38943.0,38941.0,5.224e-05]
[1643732480184,1.57874071,38942.0,38941.0,5.224e-05]
[1643732480383,2.94774071,38942.0,38941.0,5.224e-05]
[1643732480581,1.3,38941.0,38930.0,0.018589]
[1643732480784,0.09275871,38937.0,38936.0,0.00159918]
[1643732481047,1.083986,38937.0,38936.0,0.00159918]
[1643732481444,1.083986,38937.0,38930.0,6e-05]
[1643732481445,1.3,38936.0,38930.0,6e-05]
[1643732481644,0.62574883,38931.0,38930.0,6e-05]
[1643732481843,0.33122912,38931.0,38930.0,6e-05]
[1643732482043,0.26697612,38931.0,38930.0,6e-05]
[1643732482445,0.59146167,38931.0,38930.0,6e-05]
[1643732482643,0.67970645,38931.0,38930.0,6e-05]
[1643732482843,0.67255774,38931.0,38930.0,6e-05]
[1643732483051,0.26697612,38931.0,38930.0,6e-05]
[1643732483644,0.40973483,38931.0,38930.0,6e-05]
[1643732483845,0.26697612,38931.0,38930.0,6e-05]
[1643732486283,0.49711246,38931.0,38930.0,6e-05]
[1643732486481,0.26697612,38931.0,38930.0,6e-05]
[1643732487483,0.53454098,38931.0,38930.0,6e-05]
[1643732487683,0.55383599,38931.0,38930.0,6e-05]
[1643732487881,0.26697612,38931.0,38930.0,6e-05]
[1643732488283,0.31697612,38931.0,38930.0,6e-05]
[1643732488547,0.53425866,38931.0,38930.0,6e-05]
[1643732488739,1.13036866,38931.0,38930.0,6e-05]
[1643732488938,0.53425866,38931.0,38930.0,6e-05]
[1643732489440,0.31697612,38931.0,38930.0,6e-05]
[1643732489640,0.26697612,38931.0,38930.0,6e-05]
[1643732491241,0.51796796,38931.0,38930.0,6e-05]
[1643732491644,0.51796796,38931.0,38924.0,0.03581953]
[1643732491645,0.73763074,38931.0,38924.0,0.03581953]
[1643732491842,0.083986,38930.0,38924.0,0.03581953]
[1643732492680,0.13795314,38925.0,38924.0,0.03581953]
[1643732492882,0.11210798,38929.0,38924.0,0.03581953]
[1643732493080,0.083986,38928.0,38924.0,0.03581953]
[1643732493484,0.133986,38928.0,38924.0,0.03581953]
[1643732493688,0.03320774,38927.0,38924.0,0.03581953]
[1643732493882,0.44781991,38928.0,38924.0,0.03581953]
[1643732493883,0.21009192,38925.0,38924.0,0.03697067]
[1643732494083,0.5143402,38925.0,38924.0,0.03697067]
[1643732494283,0.5143402,38925.0,38913.0,0.08807602]
[1643732494284,0.55427597,38925.0,38913.0,0.08807602]
[1643732494488,0.55427597,38925.0,38920.0,0.01934063]
[1643732494489,0.04611,38922.0,38920.0,0.01934063]
[1643732494684,0.04611,38922.0,38906.0,0.05015171]
[1643732494685,1.60411748,38921.0,38906.0,0.05]
[1643732494888,1.60411748,38921.0,38894.0,0.28029767]
[1643732494889,0.09275871,38907.0,38894.0,0.31516795]
[1643732495086,0.09275871,38907.0,38883.0,0.42]
[1643732495087,0.03650923,38906.0,38891.0,0.26525174]
[1643732495286,0.09275871,38907.0,38891.0,0.26525174]
[1643732495287,0.32922441,38899.0,38891.0,0.20097174]
[1643732495490,0.62922441,38899.0,38891.0,0.20097174]
[1643732495684,0.11297007,38898.0,38891.0,0.20082]
[1643732496144,0.128611,38896.0,38891.0,0.20082]
[1643732496345,0.083986,38895.0,38891.0,0.20082]
[1643732496642,0.083986,38895.0,38879.0,0.42]
[1643732496643,0.133986,38895.0,38879.0,0.42]
[1643732496840,0.15563222,38889.0,38879.0,0.42]
[1643732497242,0.23961822,38889.0,38879.0,0.42]
[1643732497446,0.24878835,38889.0,38877.0,0.94145202]
[1643732497644,0.03862655,38888.0,38878.0,0.22013148]
[1643732497842,0.37227435,38889.0,38877.0,0.79881]
[1643732497843,0.0876267,38887.0,38877.0,0.79881]
[1643732498042,0.04046025,38886.0,38877.0,0.79881]
[1643732498242,0.12207921,38880.0,38877.0,0.79881]
[1643732498442,0.3,38886.0,38877.0,0.79881]
[1643732498443,0.22013148,38885.0,38877.0,0.17937337]
[1643732498641,0.22013148,38885.0,38877.0,0.18106116]
[1643732498642,0.083986,38884.0,38877.0,0.18106116]
[1643732498846,0.133986,38884.0,38877.0,0.18106116]
[1643732499141,0.083986,38884.0,38877.0,0.00168779]
[1643732499345,0.15561144,38883.0,38877.0,0.00168779]
[1643732499541,0.083986,38882.0,38878.0,0.05]
[1643732499787,0.192955,38896.0,38879.0,0.22013148]
[1643732499986,0.816,38902.0,38881.0,0.1]
[1643732499987,0.5,38902.0,38881.0,0.1]
[1643732500190,0.82287622,38905.0,38882.0,0.22013148]
[1643732500191,0.04527464,38900.0,38882.0,0.22013148]
[1643732500487,0.04489968,38898.0,38879.0,0.22013148]
[1643732500693,0.1474929,38895.0,38887.0,0.24131959]
[1643732501085,0.1474929,38895.0,38887.0,0.00113585]
[1643732501286,0.01880596,38892.0,38887.0,0.00113585]
[1643732501686,0.01880596,38892.0,38881.0,0.05454407]
[1643732501888,0.64343865,38904.0,38900.0,0.83370114]
[1643732502189,0.46178691,38903.0,38900.0,0.83370114]
[1643732502389,0.28212124,38903.0,38900.0,0.83370114]
[1643732502987,0.75811258,38903.0,38900.0,0.83370114]
[1643732503187,0.19789,38902.0,38900.0,0.83370114]
[1643732503387,0.19789,38902.0,38900.0,0.04101545]
[1643732503388,1.182576,38901.0,38900.0,0.04101545]
[1643732503642,1.44403319,38901.0,38900.0,0.03601545]
[1643732503841,2.519,38900.0,38885.0,0.00113447]
[1643732504045,0.31554286,38898.0,38885.0,0.00113447]
[1643732504240,0.18961826,38897.0,38885.0,0.00113447]
[1643732504444,0.25392226,38897.0,38882.0,0.7848]
[1643732504640,0.114304,38897.0,38885.0,0.00113447]
[1643732504842,0.064304,38897.0,38885.0,0.00113447]
[1643732505243,0.310784,38897.0,38885.0,0.00113447]
[1643732505444,0.25863167,38896.0,38885.0,0.00113447]
[1643732505645,0.14788785,38895.0,38882.0,0.7848]
[1643732505843,0.00617955,38895.0,38885.0,0.00168226]
[1643732506044,0.26667126,38895.0,38885.0,0.00168226]
[1643732506648,0.30979878,38894.0,38885.0,0.00168226]
[1643732506947,0.04664871,38892.0,38872.0,0.563]
[1643732507146,0.04664871,38892.0,38885.0,0.00168242]
[1643732507147,0.2212809,38891.0,38885.0,0.00168242]
[1643732507386,0.083986,38890.0,38880.0,0.00341298]
[1643732507586,0.083986,38890.0,38871.0,0.1247559]
[1643732507587,0.1161214,38884.0,38871.0,0.1247559]
[1643732507786,0.064327,38881.0,38873.0,0.76]
[1643732507988,0.064327,38881.0,38873.0,0.75831758]
[1643732508186,0.064327,38881.0,38871.0,0.01]
[1643732508586,0.32270592,38881.0,38871.0,0.01]
[1643732508788,0.37270592,38881.0,38871.0,0.01]
[1643732508987,0.114327,38881.0,38871.0,0.16687383]
[1643732509191,0.05,38881.0,38871.0,0.16687383]
[1643732509389,0.05,38886.0,38871.0,0.16687383]
[1643732509589,0.05,38886.0,38872.0,0.1]
[1643732509791,0.26019702,38890.0,38871.0,0.16687383]
[1643732509988,0.05,38891.0,38879.0,0.11938918]
[1643732509989,0.26527207,38889.0,38879.0,0.11938918]
[1643732510189,0.22274684,38888.0,38871.0,0.01]
[1643732510590,0.22274684,38888.0,38872.0,0.02009355]
[1643732510788,0.22274684,38888.0,38871.0,0.01]
[1643732510789,0.00055979,38882.0,38871.0,0.01]
[1643732511233,0.00055979,38882.0,38873.0,0.13847544]
[1643732511634,0.22551802,38886.0,38873.0,0.13847544]
[1643732511938,0.22551802,38886.0,38876.0,0.00167214]
[1643732511939,0.00111951,38882.0,38876.0,0.00167214]
[1643732512738,0.23709131,38880.0,38876.0,0.00167214]
[1643732512934,0.24371833,38885.0,38874.0,0.12898883]
[1643732513537,0.083986,38884.0,38874.0,0.12898883]
[1643732513734,0.3552669,38884.0,38871.0,0.01]
[1643732513934,0.27283852,38879.0,38871.0,0.01]
[1643732514136,0.2712809,38884.0,38871.0,0.01]
[1643732514335,0.05,38879.0,38871.0,0.01]
[1643732514539,0.0395,38883.0,38871.0,0.01]
[1643732514797,0.0395,38883.0,38874.0,0.11454906]
[1643732515196,0.0395,38883.0,38871.0,0.01]
[1643732515399,0.26765864,38873.0,38871.0,0.01]
[1643732515597,0.083986,38872.0,38871.0,0.01]
[1643732516397,0.533986,38872.0,38871.0,0.01]
[1643732516597,0.083986,38872.0,38871.0,0.01]
[1643732516796,0.133986,38872.0,38871.0,0.01]
[1643732517397,0.733986,38872.0,38871.0,0.01]
[1643732517599,0.733986,38872.0,38870.0,0.00167371]
[1643732517600,0.8,38871.0,38870.0,0.00167371]
[1643732517797,0.8,38871.0,38860.0,0.02007114]
[1643732517798,1.19907189,38871.0,38860.0,0.02007114]
[1643732517998,0.27258512,38863.0,38860.0,0.02007114]
[1643732518198,0.05,38863.0,38860.0,0.02007114]
[1643732518405,0.49321854,38858.0,38857.0,0.0021596]
[1643732518645,0.62720454,38858.0,38857.0,0.0021596]
[1643732518842,0.29975674,38858.0,38839.0,0.75721134]
[1643732519043,0.22415138,38857.0,38856.0,0.00167412]
[1643732519241,0.22415138,38857.0,38850.0,0.00669747]
[1643732519242,0.1335026,38856.0,38850.0,0.00669747]
[1643732519443,0.123486,38855.0,38850.0,0.00669747]
[1643732519641,0.173486,38855.0,38850.0,0.00669747]
[1643732520042,0.26707356,38843.0,38838.0,0.022]
[1643732520248,1.0,38854.0,38838.0,0.022]
[1643732520249,0.083986,38842.0,38838.0,0.022]
[1643732520443,1.0,38854.0,38838.0,0.022]
[1643732520444,0.0395,38851.0,38838.0,0.022]
[1643732520643,0.0426842,38852.0,38838.0,0.022]
[1643732520841,0.05,38850.0,38838.0,0.022]
[1643732521044,0.3256765,38849.0,38838.0,0.022]
[1643732521251,0.15389039,38849.0,38845.0,0.01937745]
[1643732521444,0.15389039,38849.0,38838.0,0.022]
[1643732521644,0.19501706,38849.0,38838.0,0.022]
[1643732521843,0.24135024,38849.0,38838.0,0.022]
[1643732522044,0.13663135,38844.0,38832.0,0.13525951]
[1643732522286,0.18663135,38844.0,38830.0,0.05]
[1643732522489,0.23845378,38838.0,38834.0,0.0195487]
[1643732522687,0.0395,38843.0,38834.0,0.0195487]
[1643732522985,0.0395,38843.0,38830.0,0.05]
[1643732523188,0.0395,38843.0,38831.0,0.67249138]
[1643732523388,0.0395,38853.0,38834.0,0.1]
[1643732523587,0.00555274,38839.0,38838.0,0.1]
[1643732523788,0.64549,38862.0,38838.0,0.1]
[1643732523789,0.1505707,38860.0,38838.0,0.34834]
[1643732523987,0.1505707,38860.0,38842.0,0.00109574]
[1643732524187,0.1505707,38860.0,38844.0,0.05]
[1643732524188,0.08840011,38858.0,38844.0,0.05]
[1643732524588,0.1505707,38860.0,38844.0,0.05]
[1643732524788,0.1505707,38860.0,38847.0,0.15005706]
[1643732524991,0.1505707,38860.0,38838.0,0.02065985]
[1643732525189,0.1505707,38860.0,38848.0,0.00109555]
[1643732525388,0.19001523,38859.0,38848.0,0.00109555]
[1643732525588,0.1505707,38860.0,38848.0,0.00109555]
[1643732526038,0.2005707,38860.0,38849.0,0.14205518]
[1643732526235,0.3,38862.0,38850.0,0.22314535]
[1643732526437,0.00113892,38856.0,38850.0,0.22314535]
[1643732526636,0.00113892,38856.0,38855.0,0.24123315]
[1643732526834,0.001,38872.0,38855.0,0.39554]
[1643732527034,0.001,38872.0,38855.0,0.0472]
[1643732527035,0.24748,38872.0,38855.0,0.0472]
[1643732527434,0.001,38872.0,38855.0,0.0472]
[1643732527639,0.001,38872.0,38858.0,0.05]
[1643732527835,0.28512633,38869.0,38859.0,0.12824484]
[1643732528035,0.28512633,38869.0,38860.0,0.0472]
[1643732528435,0.12996459,38871.0,38860.0,0.0472]
[1643732528637,0.001,38872.0,38860.0,0.26173026]
[1643732529040,0.001,38872.0,38861.0,0.1]
[1643732529237,0.001,38872.0,38862.0,0.35315472]
[1643732529440,0.001,38872.0,38863.0,0.34834]
[1643732529786,0.001,38872.0,38866.0,0.05]
[1643732529990,0.001,38872.0,38867.0,0.0472]
[1643732530588,0.001,38872.0,38866.0,0.019923]
[1643732530886,0.001,38872.0,38868.0,0.05]
[1643732531086,0.00113607,38871.0,38869.0,0.34834]
[1643732531287,0.00113607,38871.0,38869.0,0.39554]
[1643732531687,0.00113607,38871.0,38870.0,1.04169219]
[1643732531886,0.00113607,38871.0,38870.0,1.43723219]
[1643732532086,0.001,38872.0,38870.0,0.0472]
[1643732532288,0.00213607,38872.0,38870.0,0.0472]
[1643732532487,0.00213607,38872.0,38861.0,0.0472]
[1643732532693,0.00213607,38872.0,38867.0,0.05]
[1643732532887,0.22902123,38881.0,38873.0,0.00427213]
[1643732533088,0.14949416,38882.0,38873.0,0.00427213]
[1643732533289,0.19949416,38882.0,38873.0,0.00427213]
[1643732533543,0.22009529,38881.0,38873.0,0.00427213]
[1643732533936,0.26865634,38876.0,38873.0,0.00427213]
[1643732534135,0.22379974,38878.0,38873.0,0.00427213]
[1643732534336,0.05,38876.0,38873.0,0.00427213]
[1643732534736,0.3,38878.0,38874.0,0.12133887]
[1643732535735,0.001,38886.0,38874.0,0.12133887]
[1643732535936,0.001,38886.0,38875.0,0.05]
[1643732535937,0.00113323,38878.0,38875.0,0.05]
[1643732537035,0.64110789,38884.0,38875.0,0.05]
[1643732537036,0.42,38884.0,38875.0,0.05]
[1643732537287,0.00113323,38878.0,38875.0,0.05]
[1643732537691,0.22818521,38878.0,38873.0,0.00427213]
[1643732537894,0.28091591,38877.0,38873.0,0.00427213]
[1643732538088,0.28728482,38876.0,38873.0,0.00427213]